bitfinex-derivatives/quotes_SOLF0:USTF0_20220106
["timestamp","ask_amount","ask_price","bid_price","bid_amount"]
[1641462190314,89.24297272,149.21,149.12,27.66479]
[1641462190509,4.0,149.19,149.12,27.66479]
[1641462190708,4.0,149.2,149.08,27.87385033]
[1641462190908,4.0,149.14,149.08,27.87385033]
[1641462191511,5.013,149.14,149.08,21.17615099]
[1641462191709,4.0,149.09,149.08,21.17615099]
[1641462191908,5.481,149.09,149.02,10.18]
[1641462192108,91.481,149.09,149.02,10.18]
[1641462192308,91.481,149.09,149.03,27.66479]
[1641462192508,91.481,149.09,149.03,34.36473305]
[1641462193110,86.0,149.09,149.03,34.36473305]
[1641462193710,4.0,149.08,149.03,34.36473305]
[1641462193910,4.0,149.08,149.03,6.69994305]
[1641462194212,86.0,149.06,149.01,10.14]
[1641462195211,86.0,149.03,149.01,10.14]
[1641462196213,86.0,149.03,149.02,6.70061646]
[1641462196413,86.0,149.03,149.02,12.92061646]
[1641462198318,4.73704507,149.08,149.02,12.92061646]
[1641462198518,4.73704507,149.08,149.02,6.70061646]
[1641462199018,4.73704507,149.07,149.02,6.70061646]
[1641462199818,4.73704507,149.06,149.02,6.70061646]
[1641462200822,104.01944919,149.13,149.02,6.70061646]
[1641462200823,4.73704507,149.09,149.02,6.70061646]
[1641462201022,4.73704507,149.09,149.02,11.63861646]
[1641462201623,4.73704507,149.08,149.02,11.63861646]
[1641462202222,4.73704507,149.08,149.05,27.66479]
[1641462202723,4.73704507,149.09,149.05,27.66479]
[1641462203323,4.0,149.07,149.02,6.70061646]
[1641462203823,4.73704507,149.1,149.02,6.70061646]
[1641462204023,8.73704507,149.1,149.02,6.70061646]
[1641462204224,4.73704507,149.07,149.02,6.70061646]
[1641462205826,4.73704507,149.09,149.02,6.70061646]
[1641462206327,4.73704507,149.09,149.04,27.66479]
[1641462207427,4.73704507,149.09,149.04,34.20779]
[1641462208031,4.0,149.05,149.01,44.50563096]
[1641462208229,4.0,149.04,149.01,10.14]
[1641462208631,4.0,149.04,148.99,37.90194919]
[1641462209331,4.0,149.02,148.99,37.90194919]
[1641462209532,4.0,149.0,148.97,37.46479]
[1641462209734,4.73704507,149.02,148.97,37.46479]
[1641462209932,8.73704507,149.02,148.97,37.46479]
[1641462210533,4.73704507,149.01,148.97,37.46479]
[1641462211533,4.73704507,149.0,148.97,37.46479]
[1641462212236,4.73704507,149.04,148.98,6.92449833]
[1641462212934,8.73704507,149.04,148.98,6.92449833]
[1641462213134,4.0,149.01,148.98,6.92449833]
[1641462213336,10.811,149.01,148.98,6.92449833]
[1641462213837,15.54804507,149.01,148.98,6.92449833]
[1641462214235,4.0,149.0,148.98,6.92449833]
[1641462215036,8.73704507,149.01,148.98,6.92449833]
[1641462215437,8.73704507,149.01,148.97,37.46479]
[1641462216138,4.0,148.98,148.94,37.90194919]
[1641462216335,4.0,148.95,148.9,27.66479]
[1641462216535,4.0,148.94,148.85,95.17404725]
[1641462216739,10.326,148.95,148.85,95.17404725]
[1641462216936,6.326,148.95,148.85,95.17404725]
[1641462217442,6.326,148.95,148.88,56.16751418]
[1641462217636,72.5221,148.98,148.88,56.16751418]
[1641462217836,68.5221,148.98,148.88,56.16751418]
[1641462218136,4.0,148.97,148.88,56.16751418]
[1641462218336,4.0,148.97,148.88,27.66479]
[1641462218537,4.0,148.94,148.88,27.66479]
[1641462218738,9.037,148.94,148.86,90.53943722]
[1641462218937,4.0,148.91,148.86,62.87464722]
[1641462219137,4.0,148.9,148.86,62.87464722]
[1641462219337,4.0,148.9,148.89,1.41165414]
[1641462219739,7.149,148.91,148.89,1.41165414]
[1641462219939,10.38457122,148.91,148.89,1.41165414]
[1641462220139,10.38457122,148.91,148.87,11.33820531]
[1641462220539,7.149,148.91,148.87,11.33820531]
[1641462220838,3.23557122,148.91,148.87,11.33820531]
[1641462221039,3.23557122,148.93,148.87,11.33820531]
[1641462221243,3.23557122,148.89,148.86,6.70713304]
[1641462221439,3.23557122,148.91,148.86,6.70713304]
[1641462221838,3.23557122,148.92,148.86,6.70713304]
[1641462222038,3.23557122,148.91,148.86,6.70713304]
[1641462222242,3.23557122,148.91,148.9,14.22331522]
[1641462222939,35.64116963,148.94,148.9,1.522e-05]
[1641462223140,4.74080841,148.94,148.9,1.522e-05]
[1641462223942,70.13957963,148.95,148.86,6.70713304]
[1641462224342,97.80436963,148.95,148.87,27.66479]
[1641462224544,94.56879841,148.95,148.87,27.66479]
[1641462224742,3.23557122,148.94,148.87,27.66479]
[1641462224942,3.23557122,148.91,148.86,6.70713304]
[1641462225147,3.23557122,148.89,148.84,56.16751418]
[1641462225843,3.23557122,148.88,148.83,6.7087079]
[1641462226043,3.23557122,148.88,148.82,28.42921878]
[1641462226846,3.23557122,148.88,148.82,27.66479]
[1641462227047,3.23557122,148.88,148.81,12.10263409]
[1641462227244,3.23557122,148.87,148.81,12.10263409]
[1641462227648,3.23557122,148.86,148.82,56.16751418]
[1641462228247,3.23557122,148.88,148.82,56.16751418]
[1641462228547,27.66479,148.9,148.82,56.16751418]
[1641462228848,3.23557122,148.89,148.81,0.76442878]
[1641462229248,30.90036122,148.9,148.81,0.76442878]
[1641462229648,27.66479,148.9,148.85,0.76442878]
[1641462229849,27.66479,148.9,148.84,0.76442878]
[1641462230351,27.66479,148.9,148.81,56.16751418]
[1641462230751,27.66479,148.9,148.82,56.16751418]
[1641462231150,27.66479,148.9,148.84,0.76442878]
[1641462231359,27.66479,148.9,148.82,56.16751418]
[1641462232350,27.66479,148.9,148.84,0.76442878]
[1641462232551,70.23637122,148.96,148.89,0.76442878]
[1641462232552,62.1632,148.95,148.89,0.76442878]
[1641462232752,62.1632,148.95,148.9,0.76442878]
[1641462232952,62.1632,148.95,148.89,6.33642878]
[1641462233152,62.1632,148.95,148.92,0.76442878]
[1641462233351,99.42246122,148.98,148.92,4.401]
[1641462233751,99.42246122,148.98,148.88,56.16751418]
[1641462233950,3.23557122,148.95,148.88,56.16751418]
[1641462234151,6.595,148.95,148.88,56.16751418]
[1641462234553,3.23557122,148.94,148.88,36.47451418]
[1641462235353,3.23557122,148.95,148.88,36.47451418]
[1641462235555,7.97637963,148.93,148.87,0.76442878]
[1641462235954,4.74080841,148.93,148.82,6.91571671]
[1641462236154,4.74080841,148.93,148.83,6.7087079]
[1641462236354,3.23557122,148.94,148.85,0.76442878]
[1641462236355,7.97637963,148.94,148.85,0.76442878]
[1641462236555,7.97637963,148.94,148.87,0.76442878]
[1641462236756,7.97637963,148.94,148.83,6.7087079]
[1641462236955,14.54237963,148.94,148.87,0.76442878]
[1641462237156,11.30680841,148.94,148.87,38.69404132]
[1641462237755,3.23557122,148.9,148.87,37.92961254]
[1641462237956,9.54157122,148.9,148.87,37.92961254]
[1641462238257,9.54157122,148.9,148.82,18.25096435]
[1641462238455,9.54157122,148.9,148.83,0.76442878]
[1641462238654,3.23557122,148.88,148.82,18.25096435]
[1641462238855,3.23557122,148.87,148.82,18.25096435]
[1641462239055,4.72,148.87,148.82,18.25096435]
[1641462239256,4.72,148.87,148.81,6.91571671]
[1641462240155,68.6568,148.9,148.81,7.68014549]
[1641462240356,71.89237122,148.9,148.81,6.91571671]
[1641462240555,68.6568,148.9,148.81,18.40109978]
[1641462240756,32.40559841,148.91,148.87,0.76442878]
[1641462240958,4.74080841,148.89,148.87,4.691]
[1641462241158,4.74080841,148.89,148.88,0.76442878]
[1641462241756,67.1656,148.95,148.88,0.76442878]
[1641462241958,67.71710841,148.96,148.93,0.76442878]
[1641462242159,4.74080841,148.96,148.89,0.76442878]
[1641462242359,7.97637963,148.96,148.87,0.76442878]
[1641462242558,4.74080841,148.96,148.88,0.76442878]
[1641462242762,4.74080841,148.98,148.9,4.0]
[1641462242959,4.74080841,148.98,148.92,0.76442878]
[1641462243161,3.23557122,148.96,148.9,0.76442878]
[1641462243359,4.74080841,148.98,148.9,0.76442878]
[1641462243561,63.1384,148.99,148.93,0.76442878]
[1641462243759,66.37397122,148.99,148.89,6.70600858]
[1641462243959,63.1384,148.99,148.92,0.76442878]
[1641462244160,63.1384,148.99,148.93,0.76442878]
[1641462244362,71.11477963,148.99,148.9,0.76442878]
[1641462244761,98.77956963,148.99,148.89,34.37079858]
[1641462244965,98.77956963,148.99,148.9,6.91571671]
[1641462245162,3.23557122,148.97,148.9,7.68014549]
[1641462245563,3.23557122,148.94,148.9,6.91571671]
[1641462245764,9.86057122,148.94,148.9,6.91571671]
[1641462245963,3.23557122,148.92,148.87,68.21319185]
[1641462246165,9.86057122,148.94,148.87,68.21319185]
[1641462246365,3.23557122,148.93,148.87,68.21319185]
[1641462246764,3.23557122,148.93,148.84,56.87794421]
[1641462247665,3.23557122,148.93,148.88,0.76442878]
[1641462247865,3.23557122,148.89,148.84,56.87794421]
[1641462248064,4.64,148.89,148.84,56.87794421]
[1641462248265,7.87557122,148.89,148.84,56.87794421]
[1641462248767,4.64,148.89,148.84,56.87794421]
[1641462248965,64.1479,148.92,148.84,56.87794421]
[1641462249164,64.1479,148.92,148.84,57.64237299]
[1641462249664,64.1479,148.92,148.82,56.87794421]
[1641462249869,64.1479,148.92,148.82,60.87794421]
[1641462250166,64.1479,148.92,148.87,0.76442878]
[1641462250365,64.1479,148.92,148.89,0.76442878]
[1641462250565,4.74080841,148.93,148.89,0.76442878]
[1641462251168,4.74080841,148.95,148.88,8.577]
[1641462251470,4.74080841,148.95,148.93,0.76442878]
[1641462252067,4.74080841,148.97,148.89,4.0]
[1641462252366,7.97637963,148.97,148.9,0.76442878]
[1641462252767,35.64116963,148.97,148.96,4.73939597]
[1641462252966,35.64116963,148.97,148.87,0.76442878]
[1641462253167,3.23557122,148.96,148.86,11.33524764]
[1641462253367,3.23557122,148.96,148.89,0.76442878]
[1641462253567,36.18536122,148.97,148.92,14.21948106]
[1641462254569,3.23557122,148.93,148.86,11.33524764]
[1641462254766,3.23557122,148.89,148.86,11.33524764]
[1641462254967,10.30357122,148.89,148.86,11.33524764]
[1641462255168,7.068,148.89,148.86,11.33524764]
[1641462255368,3.23557122,148.88,148.87,14.22299692]
[1641462255969,6.166,148.93,148.87,14.22299692]
[1641462256173,66.24757122,148.94,148.87,14.22299692]
[1641462256369,3.23557122,148.93,148.87,14.22299692]
[1641462256572,66.24757122,148.94,148.87,14.22299692]
[1641462256770,90.67679,148.94,148.88,0.76442878]
[1641462256969,90.67679,148.94,148.89,0.76442878]
[1641462257772,93.91236122,148.94,148.83,11.33524764]
[1641462257972,93.91236122,148.94,148.88,0.76442878]
[1641462258172,90.67679,148.94,148.86,0.76442878]
[1641462258372,3.23557122,148.92,148.84,0.76442878]
[1641462258572,3.23557122,148.92,148.83,11.33524764]
[1641462258774,30.90036122,148.91,148.85,37.92511532]
[1641462259174,3.23557122,148.9,148.85,37.92511532]
[1641462259473,3.23557122,148.9,148.84,0.76442878]
[1641462260073,27.66479,148.91,148.83,37.92511532]
[1641462260274,27.66479,148.91,148.85,1.40285296]
[1641462260676,63.012,148.94,148.87,0.76442878]
[1641462260974,63.012,148.94,148.86,38.6895441]
[1641462261178,63.012,148.94,148.89,0.76442878]
[1641462261380,63.012,148.94,148.86,37.92511532]
[1641462261976,63.012,148.94,148.9,1.40285296]
[1641462263578,63.012,148.94,148.89,0.76442878]
[1641462264181,63.012,148.94,148.9,0.76442878]
[1641462264381,63.012,148.94,148.9,1.40285296]
[1641462264580,63.012,148.94,148.92,0.76442878]
[1641462264781,27.66479,148.94,148.92,0.76442878]
[1641462264981,27.66479,148.94,148.9,1.40285296]
[1641462265181,100.82551532,149.02,148.93,0.76442878]
[1641462265483,67.4749,149.0,148.95,0.76442878]
[1641462265682,67.4749,149.0,148.98,0.76442878]
[1641462265984,37.92511532,149.02,148.99,0.76442878]
[1641462266184,37.92511532,149.02,148.98,7.185]
[1641462266383,37.92511532,149.02,148.99,0.76442878]
[1641462266584,66.7563,149.05,148.99,0.76442878]
[1641462266784,27.66479,149.04,148.99,0.76442878]
[1641462267486,27.66479,149.04,148.98,7.185]
[1641462267686,3.33452682,149.03,149.0,1.40285296]
[1641462268587,27.66479,149.04,148.98,1.40285296]
[1641462269488,27.66479,149.04,149.01,0.76442878]
[1641462269686,27.66479,149.04,148.98,1.40285296]
[1641462269885,27.66479,149.04,149.01,0.76442878]
[1641462270085,27.66479,149.04,148.98,1.40285296]
[1641462270288,27.66479,149.04,149.01,0.76442878]
[1641462270487,27.66479,149.04,148.98,1.40285296]
[1641462270686,30.90036122,149.04,148.98,1.40285296]
[1641462270886,27.66479,149.04,148.98,1.40285296]
[1641462271286,30.90036122,149.04,148.98,1.40285296]
[1641462271488,3.23557122,149.02,148.96,37.92511532]
[1641462271688,3.23557122,149.0,148.96,37.92511532]
[1641462271886,3.23557122,149.01,148.96,37.92511532]
[1641462272087,9.95157122,149.02,148.96,37.92511532]
[1641462272288,3.23557122,149.01,148.94,1.40285296]
[1641462272790,30.90036122,149.04,148.94,1.40285296]
[1641462273189,3.33578188,149.0,148.97,0.76442878]
[1641462273391,3.33578188,149.0,148.99,0.76442878]
[1641462273991,3.33578188,149.03,148.99,1.40285296]
[1641462274792,3.33578188,149.03,148.99,2.16728174]
[1641462274992,3.33578188,149.03,149.01,0.76442878]
[1641462275493,3.33578188,149.03,148.98,1.40285296]
[1641462275694,3.33578188,149.03,149.01,0.76442878]
[1641462276094,3.33578188,149.03,149.01,6.35042878]
[1641462276296,3.33578188,149.03,148.99,0.76442878]
[1641462276694,3.33578188,149.03,148.97,0.76442878]
[1641462276894,3.33578188,149.03,148.94,65.58990532]
[1641462277096,3.33578188,149.03,149.01,0.76442878]
[1641462277396,3.33578188,149.03,148.95,8.30524088]
[1641462277593,3.33578188,149.03,148.98,0.76442878]
[1641462277794,3.33578188,149.03,148.95,8.30524088]
[1641462277995,3.33578188,149.03,148.98,0.76442878]
[1641462278194,3.33578188,149.03,148.99,1.40357936]
[1641462279396,3.23557122,149.02,148.99,1.40357936]
[1641462279595,3.23557122,149.01,148.95,6.90166152]
[1641462279797,5.88,149.01,148.95,6.90166152]
[1641462280095,9.11557122,149.01,148.93,37.92511532]
[1641462280295,8.51762164,149.01,148.94,0.76442878]
[1641462280497,5.28205042,149.01,148.93,37.92511532]
[1641462280695,5.28205042,149.01,148.94,0.76442878]
[1641462280895,32.94684042,149.01,148.94,0.76442878]
[1641462281395,36.18241164,149.01,148.94,0.76442878]
[1641462281896,32.94684042,149.01,148.94,0.76442878]
[1641462282095,32.94684042,149.01,148.92,44.82677684]
[1641462282296,32.94684042,149.01,148.95,0.76442878]
[1641462283295,32.94684042,149.01,148.92,6.90166152]
[1641462283895,32.94684042,149.01,148.97,0.76442878]
[1641462284696,32.94684042,149.01,148.92,6.90166152]
[1641462284896,32.94684042,149.01,148.97,14.21489373]
[1641462285799,32.94684042,149.01,148.96,14.21489373]
[1641462286700,3.23557122,149.0,148.96,14.21489373]
[1641462286899,3.23557122,148.99,148.96,14.21489373]
[1641462287400,3.23557122,148.98,148.93,37.92511532]
[1641462287600,3.23557122,148.94,148.93,1.532e-05]
[1641462287800,8.64257122,148.94,148.92,6.90166152]
[1641462287999,3.23557122,148.93,148.9,1.532e-05]
[1641462288400,3.23557122,148.91,148.9,1.532e-05]
[1641462288599,6.797,148.91,148.9,1.532e-05]
[1641462288799,6.797,148.91,148.85,57.64237299]
[1641462289000,3.23557122,148.9,148.83,12.07278337]
[1641462289200,3.23557122,148.89,148.83,11.30835459]
[1641462289400,3.23557122,148.9,148.83,11.30835459]
[1641462290004,3.23557122,148.89,148.83,11.30835459]
[1641462290203,3.23557122,148.89,148.82,0.76442878]
[1641462290401,68.31227122,148.9,148.82,0.76442878]
[1641462291408,3.23557122,148.89,148.82,0.76442878]
[1641462292311,3.23557122,148.88,148.79,27.66479]
[1641462292511,3.23557122,148.85,148.79,27.66479]
[1641462292713,5.701,148.85,148.79,27.66479]
[1641462292912,8.93657122,148.85,148.78,11.30835459]
[1641462293114,5.701,148.85,148.78,12.07278337]
[1641462293512,5.701,148.85,148.78,11.30835459]
[1641462294511,8.93657122,148.85,148.77,0.76442878]
[1641462294711,5.701,148.85,148.74,84.54273421]
[1641462294911,5.701,148.85,148.76,0.76442878]
[1641462295113,3.23557122,148.84,148.77,0.76442878]
[1641462295313,3.23557122,148.84,148.76,56.87794421]
[1641462295512,3.23557122,148.82,148.77,0.76442878]
[1641462295713,4.599,148.82,148.77,0.76442878]
[1641462297013,63.9179,148.84,148.78,0.76442878]
[1641462297816,63.9179,148.84,148.77,0.76442878]
[1641462298014,63.9179,148.84,148.79,0.76442878]
[1641462298715,67.15347122,148.84,148.77,56.87794421]
[1641462298915,3.23557122,148.79,148.77,56.87794421]
[1641462299115,6.319,148.79,148.77,56.87794421]
[1641462299816,6.319,148.79,148.74,57.64237299]
[1641462300218,6.319,148.79,148.74,56.87794421]
[1641462300519,9.55457122,148.79,148.74,56.87794421]
[1641462300717,3.23557122,148.78,148.74,56.87794421]
[1641462300916,3.23557122,148.78,148.73,15.10283204]
[1641462301118,3.23557122,148.75,148.7,111.03201292]
[1641462301917,3.23557122,148.74,148.7,111.03201292]
[1641462302116,5.604,148.76,148.66,7.48079657]
[1641462302317,3.23557122,148.74,148.67,0.76442878]
[1641462302618,3.23557122,148.7,148.64,95.17404725]
[1641462302820,6.993,148.7,148.64,95.17404725]
[1641462303417,3.23557122,148.69,148.64,95.17404725]
[1641462303617,3.23557122,148.69,148.6,27.66479]
[1641462304020,3.23557122,148.69,148.6,28.42921878]
[1641462304319,3.23557122,148.68,148.61,0.76442878]
[1641462304719,3.23557122,148.69,148.61,0.76442878]
[1641462305019,10.22857122,148.7,148.62,0.76442878]
[1641462305219,37.89336122,148.7,148.62,0.76442878]
[1641462305419,34.65779,148.7,148.63,0.76442878]
[1641462305621,34.65779,148.7,148.6,27.66479]
[1641462305820,6.993,148.7,148.62,4.0]
[1641462306019,64.8262,148.72,148.69,0.76442878]
[1641462306219,27.66479,148.74,148.68,7.1]
[1641462306420,27.66479,148.74,148.72,0.76442878]
[1641462306621,27.66479,148.74,148.71,0.76442878]
[1641462307221,27.66479,148.74,148.67,27.66479]
[1641462307421,27.66479,148.74,148.71,0.76442878]
[1641462307821,27.66479,148.74,148.68,0.76442878]
[1641462308123,33.18879,148.74,148.71,37.96331601]
[1641462309122,33.18879,148.74,148.7,37.96331601]
[1641462309722,33.18879,148.74,148.71,37.96331601]
[1641462309922,27.66479,148.74,148.71,37.96331601]
[1641462310822,27.66479,148.74,148.72,37.96331601]
[1641462313725,94.45089,148.78,148.73,0.76442878]
[1641462313925,94.45089,148.78,148.77,0.76442878]
[1641462314125,27.66479,148.78,148.77,7.86042878]
[1641462314326,4.74560268,148.79,148.77,7.86042878]
[1641462314525,4.74560268,148.79,148.78,0.76442878]
[1641462315226,68.74060268,148.85,148.78,38.72774479]
[1641462315627,68.74060268,148.85,148.78,41.96331601]
[1641462315826,4.74560268,148.85,148.78,41.96331601]
[1641462316126,4.74560268,148.85,148.83,0.76442878]
[1641462316525,4.74560268,148.85,148.84,0.76442878]
[1641462317125,2.68e-06,148.88,148.84,0.76442878]
[1641462317331,2.68e-06,148.88,148.87,0.76442878]
[1641462317525,2.68e-06,148.88,148.87,6.60542878]
[1641462317725,2.68e-06,148.88,148.87,10.60542878]
[1641462317927,37.96331601,148.94,148.87,6.60542878]
[1641462318328,37.96331601,148.94,148.91,0.76442878]
[1641462318525,12.08154437,148.96,148.91,7.32442878]
[1641462318927,12.08154437,148.96,148.92,0.76442878]
[1641462319328,12.08154437,148.96,148.95,0.76442878]
[1641462319526,37.96331601,149.01,148.95,7.48542878]
[1641462319726,37.96331601,149.01,148.95,6.721]
[1641462320026,37.96331601,149.01,148.97,0.76442878]
[1641462320226,37.96331601,149.01,148.95,6.721]
[1641462320729,41.30706584,149.01,148.95,6.721]
[1641462320932,15.41977369,149.01,148.95,6.721]
[1641462321129,15.41977369,149.01,148.97,0.76442878]
[1641462321330,15.41977369,149.01,148.95,6.721]
[1641462321529,15.41977369,149.01,148.99,0.76442878]
[1641462321728,15.41977369,149.01,148.99,5.417]
[1641462321929,1.68717369,149.01,149.0,0.76442878]
[1641462322729,27.66479,149.02,149.0,0.76442878]
[1641462322930,27.66479,149.02,148.96,14.98643498]
[1641462323131,27.66479,149.02,148.96,14.2220062]
[1641462323132,3.23557122,149.01,148.96,14.2220062]
[1641462323330,32.20679,149.02,148.96,14.2220062]
[1641462323532,32.20679,149.02,148.96,14.98643498]
[1641462324132,32.20679,149.02,148.96,14.2220062]
[1641462324332,27.66479,149.02,148.98,0.76442878]
[1641462325135,27.66479,149.02,148.99,0.76442878]
[1641462325934,27.66479,149.02,148.95,14.2220062]
[1641462326136,27.66479,149.02,148.97,0.76442878]
[1641462326737,27.66479,149.02,148.94,41.8867962]
[1641462326935,27.66479,149.02,148.97,0.76442878]
[1641462327135,27.66479,149.02,148.99,0.76442878]
[1641462328936,27.66479,149.02,148.95,14.2220062]
[1641462329137,32.46779,149.02,148.95,14.98643498]
[1641462329337,32.46779,149.02,148.95,14.2220062]
[1641462329536,3.23557122,149.01,148.95,14.2220062]
[1641462329936,41.19888723,149.01,148.93,0.76442878]
[1641462330138,37.96331601,149.01,148.91,18.2220062]
[1641462330437,37.96331601,149.01,148.96,0.76442878]
[1641462330635,37.96331601,149.01,148.95,0.76442878]
[1641462331844,37.96331601,149.01,148.91,14.2220062]
[1641462332343,37.96331601,149.01,148.95,0.76442878]
[1641462332544,68.86367723,149.02,148.95,0.76442878]
[1641462334046,65.62810601,149.02,148.92,18.2220062]
[1641462334246,65.62810601,149.02,148.92,14.2220062]
[1641462334644,65.62810601,149.02,148.97,0.76442878]
[1641462334844,65.62810601,149.02,148.92,14.2220062]
[1641462335046,65.62810601,149.02,148.97,0.76442878]
[1641462335247,65.62810601,149.02,148.96,5.495]
[1641462335447,65.62810601,149.02,149.01,0.76442878]
[1641462335848,27.66479,149.02,149.01,7.27742878]
[1641462338852,27.66479,149.02,149.0,0.76442878]
[1641462339051,27.66479,149.02,148.98,0.76442878]
[1641462339451,27.66479,149.02,149.0,0.76442878]
[1641462339654,27.66479,149.02,149.01,0.76442878]
[1641462340853,27.66479,149.02,148.99,2.94436298]
[1641462341055,27.66479,149.02,148.98,2.94436298]
[1641462341257,27.66479,149.02,148.97,17.16636918]
[1641462342156,27.66479,149.02,148.98,2.94436298]
[1641462342355,27.66479,149.02,148.99,2.94436298]
[1641462342958,27.66479,149.02,149.0,2.94436298]
[1641462343160,69.25403702,149.08,149.0,2.94436298]
[1641462343559,1.05563702,149.05,148.98,14.2220062]
[1641462343759,1.05563702,149.03,148.98,14.2220062]
[1641462344161,6.335,149.05,148.99,14.2220062]
[1641462344660,1.05563702,149.0,148.99,14.2220062]
[1641462344860,1.05563702,149.0,148.99,6.2e-06]
[1641462345561,1.05563702,149.0,148.96,44.84733171]
[1641462345860,1.05563702,148.97,148.96,6.8840157]
[1641462346060,6.69963702,148.97,148.96,6.8840157]
[1641462346663,6.69963702,148.97,148.9,40.90767899]
[1641462347064,5.644,148.97,148.9,40.90767899]
[1641462347264,1.05563702,148.94,148.9,37.96331601]
[1641462347464,5.43163702,148.94,148.9,37.96331601]
[1641462347865,1.05563702,148.93,148.9,37.96331601]
[1641462348064,1.05563702,148.93,148.89,6.8840157]
[1641462348266,1.05563702,148.92,148.89,6.8840157]
[1641462348467,27.66479,148.97,148.89,6.8840157]
[1641462348867,1.05563702,148.94,148.89,6.8840157]
[1641462349270,1.05563702,148.94,148.87,59.08657769]
[1641462349469,1.05563702,148.94,148.87,9.82837868]
[1641462350071,27.66479,148.97,148.88,2.94436298]
[1641462350269,1.05563702,148.93,148.89,2.94436298]
[1641462350569,1.05563702,148.95,148.89,2.94436298]
[1641462354475,1.05563702,148.91,148.87,44.84733171]
[1641462354773,7.99163702,148.91,148.87,44.84733171]
[1641462354975,6.936,148.91,148.87,44.84733171]
[1641462355174,6.936,148.91,148.87,6.8840157]
[1641462355575,1.05563702,148.88,148.87,6.8840157]
[1641462355775,5.97963702,148.88,148.87,6.8840157]
[1641462355981,5.97963702,148.88,148.85,37.96331601]
[1641462356376,4.924,148.88,148.85,37.96331601]
[1641462356777,1.05563702,148.86,148.85,37.96331601]
[1641462357077,5.05563702,148.86,148.83,6.8840157]
[1641462357276,1.05563702,148.84,148.83,6.8840157]
[1641462358278,1.05563702,148.84,148.8,11.294883]
[1641462358578,1.05563702,148.84,148.78,2.94436298]
[1641462358978,1.05563702,148.84,148.77,2.94436298]
[1641462359179,1.05563702,148.83,148.76,30.60915298]
[1641462359982,1.05563702,148.83,148.77,6.8840157]
[1641462360183,1.05563702,148.83,148.77,9.82837868]
[1641462360383,1.05563702,148.84,148.79,2.94436298]
[1641462360684,27.66479,148.85,148.81,2.94436298]
[1641462361084,27.66479,148.85,148.77,6.8840157]
[1641462361283,35.19542702,148.85,148.77,9.82837868]
[1641462361484,35.19542702,148.85,148.77,66.77465701]
[1641462362083,34.13979,148.85,148.78,2.94436298]
[1641462362289,27.66479,148.85,148.78,2.94436298]
[1641462362683,27.66479,148.85,148.78,4.33972097]
[1641462363183,27.66479,148.85,148.79,2.94436298]
[1641462363385,28.72042702,148.85,148.78,1.39535799]
[1641462363585,1.05563702,148.8,148.78,1.39535799]
[1641462363885,7.263,148.8,148.79,1.39535799]
[1641462364485,8.31863702,148.8,148.79,1.39535799]
[1641462364685,7.263,148.8,148.78,56.94627833]
[1641462364885,7.263,148.8,148.75,8.27937369]
[1641462365086,1.05563702,148.83,148.75,11.22373667]
[1641462365285,68.2386,148.86,148.75,11.22373667]
[1641462365787,1.05563702,148.82,148.76,4.33972097]
[1641462366388,1.05563702,148.82,148.77,2.94436298]
[1641462366590,1.05563702,148.82,148.76,4.33972097]
[1641462366888,1.05563702,148.78,148.77,1.39535799]
[1641462367088,6.71063702,148.78,148.77,1.39535799]
[1641462367288,6.71063702,148.78,148.77,5.799e-05]
[1641462368289,5.655,148.78,148.77,5.799e-05]
[1641462368489,5.655,148.78,148.75,6.8840157]
[1641462368689,4.386,148.82,148.75,6.8840157]
[1641462368889,1.05563702,148.79,148.75,6.8840157]
[1641462369092,1.05563702,148.77,148.75,6.8840157]
[1641462369291,6.412,148.77,148.75,6.8840157]
[1641462369492,1.05563702,148.76,148.75,6.8840157]
[1641462369893,1.05563702,148.76,148.73,56.94627833]
[1641462370093,1.05563702,148.74,148.73,56.94627833]
[1641462370297,11.43963702,148.74,148.71,11.294883]
[1641462370493,1.05563702,148.72,148.7,15.8451839]
[1641462370694,1.05563702,148.72,148.68,56.94206847]
[1641462370894,1.05563702,148.71,148.68,56.94206847]
[1641462371099,6.384,148.74,148.68,56.94206847]
[1641462371100,1.05563702,148.72,148.68,56.94206847]
[1641462371299,1.05563702,148.7,148.68,56.94206847]
[1641462371499,1.05563702,148.69,148.68,56.94206847]
[1641462371999,1.05563702,148.69,148.63,106.46893025]
[1641462372201,1.05563702,148.69,148.63,11.294883]
[1641462372599,1.05563702,148.64,148.63,11.294883]
[1641462372801,7.71663702,148.64,148.63,11.294883]
[1641462373699,7.71663702,148.64,148.6,27.1400669]
[1641462373899,6.661,148.64,148.6,27.1400669]
[1641462374100,1.05563702,148.61,148.6,27.1400669]